fUST/lending_fUST_20240730
["ID","MTS","AMOUNT","RATE_DAILY","PERIOD"]
[333666304,1722324648133,-500.0,0.00013698,2]
[333666306,1722324648142,-500.0,0.00013698,2]
[333666308,1722324648151,-500.0,0.00013698,2]
[333666310,1722324648162,-599.59,0.00013698,2]
[333666312,1722324648171,-500.0,0.00013698,2]
[333666314,1722324648180,-198.86394933,0.00013698,2]
[333666316,1722324648189,-500.0,0.00013698,2]
[333666318,1722324648199,-500.0,0.00013698,2]
[333666319,1722324648208,-469.68406632,0.00013698,2]
[333666607,1722324654649,273.37336231,9.9e-05,2]
[333666608,1722324663474,273.37336231,9.9e-05,2]
[333666609,1722324671389,273.37336231,9.9e-05,2]
[333666610,1722324672644,200.0,0.0001,2]
[333666611,1722324679567,273.37336231,9.9e-05,2]
[333666612,1722324688090,273.37336231,9.9e-05,2]
[333666613,1722324697358,273.37336231,9.9e-05,2]
[333666614,1722324706018,273.37336231,9.9e-05,2]
[333666615,1722324714240,273.37336231,9.9e-05,2]
[333666622,1722324722211,273.37336231,9.9e-05,2]
[333666623,1722324731609,273.37336231,9.9e-05,2]
[333666624,1722324740177,273.37336231,9.9e-05,2]
[333666625,1722324740650,167.84875041,9.999e-05,2]
[333666626,1722324746688,200.0,0.0001,2]
[333666627,1722324748504,273.37336231,9.9e-05,2]
[333666628,1722324756388,273.37336231,9.9e-05,2]
[333666629,1722324765722,273.37336231,9.9e-05,2]
[333666630,1722324773667,273.37336231,9.9e-05,2]
[333666631,1722324782061,273.37336231,9.9e-05,2]
[333666632,1722324790063,273.37336231,9.9e-05,2]
[333666633,1722324799449,273.37336231,9.9e-05,2]
[333666634,1722324807455,273.37336231,9.9e-05,2]
[333666635,1722324812600,200.0,0.0001,2]
[333666636,1722324816866,273.37336231,9.9e-05,2]
[333666637,1722324825698,273.37336231,9.9e-05,2]
[333666643,1722324835722,273.37336231,9.9e-05,2]
[333666644,1722324843843,273.37336231,9.9e-05,2]
[333666646,1722324852195,273.37336231,9.9e-05,2]
[333666647,1722324852745,850.35,0.0001,10]
[333666648,1722324859964,273.37336231,9.9e-05,2]
[333666649,1722324868163,273.37336231,9.9e-05,2]
[333666650,1722324876874,273.37336231,9.9e-05,2]
[333666651,1722324877019,200.0,0.0001,2]
[333666652,1722324885616,273.37336231,9.9e-05,2]
[333666653,1722324893622,273.37336231,9.9e-05,2]
[333666654,1722324901840,273.37336231,9.9e-05,2]
[333666655,1722324910443,273.37336231,9.9e-05,2]
[333666656,1722324919846,273.37336231,9.9e-05,2]
[333666657,1722324927905,273.37336231,9.9e-05,2]
[333666658,1722324936191,273.37336231,9.9e-05,2]
[333666659,1722324938529,549.9372108,9.999e-05,2]
[333666660,1722324944074,273.37336231,9.9e-05,2]
[333666661,1722324947084,200.0,0.0001,2]
[333666662,1722324952333,273.37336231,9.9e-05,2]
[333666663,1722324960981,273.37336231,9.9e-05,2]
[333666664,1722324962446,850.04414428,9.999e-05,2]
[333666665,1722324969172,273.37336231,9.9e-05,2]
[333666666,1722324977567,273.37336231,9.9e-05,2]
[333666667,1722324985942,273.37336231,9.9e-05,2]
[333666668,1722324995100,273.37336231,9.9e-05,2]
[333666669,1722325003430,273.37336231,9.9e-05,2]
[333666670,1722325011821,273.37336231,9.9e-05,2]
[333666671,1722325012660,200.0,0.0001,2]
[333666672,1722325019545,273.37336231,9.9e-05,2]
[333666673,1722325023835,601.16401781,9.999e-05,2]
[333666674,1722325027973,273.37336231,9.9e-05,2]
[333666675,1722325036167,273.37336231,9.9e-05,2]
[333666676,1722325044021,273.37336231,9.9e-05,2]
[333666677,1722325044534,366.6248072,9.999e-05,2]
[333666678,1722325052380,273.37336231,9.9e-05,2]
[333666679,1722325056800,570.69690741,9.999e-05,2]
[333666680,1722325061426,273.37336231,9.9e-05,2]
[333666683,1722325070208,273.37336231,9.9e-05,2]
[333666684,1722325082775,200.0,0.0001,2]
[333666685,1722325085493,322.45540982,9.999e-05,2]
[333666686,1722325088435,273.37336231,9.9e-05,2]
[333666687,1722325097675,273.37336231,9.9e-05,2]
[333666688,1722325105844,273.37336231,9.9e-05,2]
[333666689,1722325115012,273.37336231,9.9e-05,2]
[333666690,1722325115369,240.6994678,9.999e-05,2]
[333666691,1722325123919,273.37336231,9.9e-05,2]
[333666694,1722325132741,273.37336231,9.9e-05,2]
[333666695,1722325140912,273.37336231,9.9e-05,2]
[333666696,1722325149187,273.37336231,9.9e-05,2]
[333666697,1722325152909,200.0,0.0001,2]
[333666698,1722325157437,273.37336231,9.9e-05,2]
[333666699,1722325157545,305.52067267,9.999e-05,2]
[333666700,1722325165945,273.37336231,9.9e-05,2]
[333666701,1722325172539,305.52067267,9.999e-05,2]
[333666702,1722325174747,273.37336231,9.9e-05,2]
[333666703,1722325182946,163.34277481,9.999e-05,2]
[333666704,1722325183258,273.37336231,9.9e-05,2]
[333666705,1722325188294,205.27920889,9.999e-05,2]
[333666706,1722325191447,273.37336231,9.9e-05,2]
[333666707,1722325199450,273.37336231,9.9e-05,2]
[333666708,1722325208245,273.37336231,9.9e-05,2]
[333666709,1722325215353,240.61700592,9.999e-05,2]
[333666710,1722325217994,273.37336231,9.9e-05,2]
[333666711,1722325222734,200.0,0.0001,2]
[333666712,1722325226137,273.37336231,9.9e-05,2]
[333666713,1722325234094,273.37336231,9.9e-05,2]
[333666714,1722325242235,273.37336231,9.9e-05,2]
[333666715,1722325250155,273.37336231,9.9e-05,2]
[333666716,1722325260632,273.37336231,9.9e-05,2]
[333666717,1722325268682,273.37336231,9.9e-05,2]
[333666718,1722325277146,273.37336231,9.9e-05,2]
[333666719,1722325285122,273.37336231,9.9e-05,2]
[333666720,1722325292608,200.0,0.0001,2]
[333666721,1722325293351,273.37336231,9.9e-05,2]
[333666722,1722325294557,159.17627046,9.999e-05,2]
[333666723,1722325298431,162.69232257,9.999e-05,2]
[333666724,1722325301802,273.37336231,9.9e-05,2]
[333666725,1722325309935,249.21958783,9.999e-05,2]
[333666726,1722325310517,273.37336231,9.9e-05,2]
[333666727,1722325318524,273.37336231,9.9e-05,2]
[333666728,1722325327595,273.37336231,9.9e-05,2]
[333666729,1722325336610,273.37336231,9.9e-05,2]
[333666730,1722325344370,273.37336231,9.9e-05,2]
[333666731,1722325352331,273.37336231,9.9e-05,2]
[333666732,1722325352832,288.73024545,9.999e-05,2]
[333666733,1722325360451,273.37336231,9.9e-05,2]
[333666734,1722325362805,200.0,0.0001,2]
[333666735,1722325368584,273.37336231,9.9e-05,2]
[333666736,1722325376764,273.37336231,9.9e-05,2]
[333666737,1722325384655,273.37336231,9.9e-05,2]
[333666738,1722325388955,248.40320812,9.999e-05,2]
[333666739,1722325394557,159.17627046,9.999e-05,2]
[333666740,1722325395174,273.37336231,9.9e-05,2]
[333666741,1722325402370,414.74590307,9.999e-05,2]
[333666742,1722325403176,273.37336231,9.9e-05,2]
[333666743,1722325412594,273.37336231,9.9e-05,2]
[333666744,1722325421769,273.37336231,9.9e-05,2]
[333666745,1722325421935,155.21098676,9.999e-05,2]
[333666746,1722325430420,273.37336231,9.9e-05,2]
[333666747,1722325433594,200.0,0.0001,2]
[333666748,1722325438309,273.37336231,9.9e-05,2]
[333666749,1722325446546,273.37336231,9.9e-05,2]
[333666750,1722325455047,273.37336231,9.9e-05,2]
[333666751,1722325461943,403.56713472,9.999e-05,2]
[333666752,1722325463904,273.37336231,9.9e-05,2]
[333666753,1722325471867,273.37336231,9.9e-05,2]
[333666754,1722325480052,273.37336231,9.9e-05,2]
[333666755,1722325481299,201.3893882,9.999e-05,2]
[333666756,1722325488733,273.37336231,9.9e-05,2]
[333666757,1722325492479,200.0,0.0001,2]
[333666758,1722325497075,273.37336231,9.9e-05,2]
[333666759,1722325505677,273.37336231,9.9e-05,2]
[333666760,1722325507090,159.17627046,9.999e-05,2]
[333666761,1722325513811,273.37336231,9.9e-05,2]
[333666762,1722325522962,273.37336231,9.9e-05,2]
[333666763,1722325531143,273.37336231,9.9e-05,2]
[333666764,1722325537068,159.17627046,9.999e-05,2]
[333666765,1722325539112,273.37336231,9.9e-05,2]
[333666766,1722325548109,273.37336231,9.9e-05,2]
[333666767,1722325553026,200.0,0.0001,2]
[333666768,1722325557333,273.37336231,9.9e-05,2]
[333666769,1722325559295,305.74803034,9.999e-05,2]
[333666770,1722325565637,273.37336231,9.9e-05,2]
[333666771,1722325574362,273.37336231,9.9e-05,2]
[333666772,1722325579898,404.3656482,9.999e-05,2]
[333666773,1722325582592,273.37336231,9.9e-05,2]
[333666774,1722325590829,273.37336231,9.9e-05,2]
[333666775,1722325599583,273.37336231,9.9e-05,2]
[333666776,1722325608016,273.37336231,9.9e-05,2]
[333666777,1722325616263,273.37336231,9.9e-05,2]
[333666778,1722325622639,200.0,0.0001,2]
[333666779,1722325624745,273.37336231,9.9e-05,2]
[333666780,1722325633120,273.37336231,9.9e-05,2]
[333666781,1722325642085,273.37336231,9.9e-05,2]
[333666782,1722325649081,159.17627046,9.999e-05,2]
[333666783,1722325650279,273.37336231,9.9e-05,2]
[333666784,1722325658960,273.37336231,9.9e-05,2]
[333666785,1722325668354,273.37336231,9.9e-05,2]
[333666786,1722325676109,273.37336231,9.9e-05,2]
[333666787,1722325685138,273.37336231,9.9e-05,2]
[333666788,1722325693015,273.37336231,9.9e-05,2]
[333666789,1722325696637,200.0,0.0001,2]
[333666790,1722325701132,273.37336231,9.9e-05,2]
[333666791,1722325709002,273.37336231,9.9e-05,2]
[333666792,1722325717922,273.37336231,9.9e-05,2]
[333666793,1722325726427,273.37336231,9.9e-05,2]
[333666794,1722325734658,273.37336231,9.9e-05,2]
[333666795,1722325742983,273.37336231,9.9e-05,2]
[333666796,1722325747131,159.17627046,9.999e-05,2]
[333666797,1722325751073,273.37336231,9.9e-05,2]
[333666798,1722325759122,273.37336231,9.9e-05,2]
[333666799,1722325762973,200.0,0.0001,2]
[333666800,1722325767830,273.37336231,9.9e-05,2]
[333666801,1722325776383,273.37336231,9.9e-05,2]
[333666802,1722325785401,273.37336231,9.9e-05,2]
[333666803,1722325793149,273.37336231,9.9e-05,2]
[333666809,1722325801983,273.37336231,9.9e-05,2]
[333666810,1722325810540,188.95376129,9.9e-05,2]
[333666811,1722325826422,154.69833824,9.999e-05,2]
[333666832,1722325832521,200.0,0.0001,2]
[333666874,1722325837869,-400.0,0.0001137,2]
[333666876,1722325837879,-459.45606609,0.00012,2]
[333666878,1722325837890,-346.57858764,0.00012,2]
[333666880,1722325837901,-1324.43661996,0.000125,2]
[333666882,1722325837911,-200.0,0.00012986,2]
[333666884,1722325837921,-1592.76233249,0.0001299,2]
[333666887,1722325837935,-1000.0,0.00013,13]
[333666889,1722325837945,-37366.4078794,0.0001308,2]
[333666891,1722325837956,-22378.6886837,0.0001309,2]
[333666904,1722325838081,159.17627046,9.999e-05,2]
[333667053,1722325840057,-85749.43162706,0.0001309,2]
[333667054,1722325840068,-600.0,0.00013147,2]
[333667055,1722325840077,-306.0,0.00013178,2]
[333667056,1722325840087,-1079.136,0.00013379,2]
[333667057,1722325840096,-1498.17589884,0.00013501,2]
[333667058,1722325840105,-33390.83525288,0.0001359,2]
[333667068,1722325842918,-3975.57262652,0.0001359,2]
[333667069,1722325842928,-2460.67105649,0.0001359,5]
[333667070,1722325842973,-4273.57667893,0.0001359,5]
[333667071,1722325842986,-5146.93228974,0.0001359,5]
[333667072,1722325842995,-57568.17297991,0.0001359,2]
[333667073,1722325843007,-420.41154577,0.0001359,2]
[333667088,1722325845802,-367.69126021,0.00013499,2]
[333667089,1722325845812,-134.68843519,0.0001359,2]
[333667090,1722325845906,-25701.04255603,0.0001359,2]
[333667094,1722325897584,200.0,0.0001,2]
[333667098,1722325940421,222.35712561,9.999e-05,2]
[333667099,1722325943100,159.17627046,9.999e-05,2]
[333667100,1722325966422,200.0,0.0001,2]
[333667101,1722326032440,200.0,0.0001,2]
[333667102,1722326045739,254.19319964,9.999e-05,2]
[333667103,1722326102614,200.0,0.0001,2]
[333667104,1722326163149,200.0,0.0001,2]
[333667105,1722326232608,200.0,0.0001,2]
[333667106,1722326304601,200.0,0.0001,2]
[333667107,1722326366830,200.0,0.0001,2]
[333667108,1722326432775,200.0,0.0001,2]
[333667109,1722326471063,10000.0,0.00027,120]
[333667110,1722326495530,3048.0,0.00027,120]
[333667111,1722326508060,200.0,0.0001,2]
[333667112,1722326579145,200.0,0.0001,2]
[333667113,1722326642701,200.0,0.0001,2]
[333667117,1722326703979,200.0,0.0001,2]
[333667118,1722326762608,200.0,0.0001,2]
[333667119,1722326832585,200.0,0.0001,2]
[333667120,1722326902999,200.0,0.0001,2]
[333667143,1722326976437,200.0,0.0001,2]
[333667197,1722327031990,-400.0,0.0001137,2]
[333667199,1722327031999,-39.565,0.00011953,2]
[333667202,1722327032012,-231.8225067,0.00011953,2]
[333667204,1722327032022,-459.45606609,0.00012,2]
[333667206,1722327032032,-1054.35235002,0.00012121,2]
[333667208,1722327032045,-1689.91643404,0.00012121,2]
[333667210,1722327032055,-170.806881,0.00012124,2]
[333667211,1722327032066,-170.806881,0.0001225,2]
[333667212,1722327032075,-170.806881,0.00012377,2]
[333667213,1722327032084,-153.0,0.000124,2]
[333667214,1722327032094,-170.806881,0.00012503,2]
[333667215,1722327032104,-170.806881,0.00012629,2]
[333667217,1722327032113,-170.806881,0.00012756,2]
[333667219,1722327032123,-306.6875328,0.00012787,2]
[333667221,1722327032135,-200.0,0.00012986,2]
[333667223,1722327032144,-1079.136,0.00012991,2]
[333667225,1722327032153,-1000.0,0.00013,13]
[333667227,1722327032163,-600.0,0.00013147,2]
[333667229,1722327032171,-135.98717045,0.000132,2]
[333667231,1722327032183,-17.01282955,0.000132,2]
[333667233,1722327032193,-153.0,0.000132,2]
[333667235,1722327032202,-153.0,0.000132,2]
[333667237,1722327032212,-154.0822211,0.000132,2]
[333667239,1722327032222,-636.66383697,0.00013211,2]
[333667240,1722327032232,-367.69126021,0.00013283,2]
[333667241,1722327032243,-547.44937982,0.00013371,2]
[333667242,1722327032256,-4367.20167427,0.00013371,2]
[333667243,1722327032266,-1467.4427166,0.000134,2]
[333667244,1722327032275,-573.36159996,0.00013499,2]
[333667245,1722327032288,-310.0,0.00013499,2]
[333667246,1722327032299,-2303.11790869,0.00013499,2]
[333667269,1722327038128,-360.03102562,0.00013197,2]
[333667270,1722327038138,-11864.52049135,0.00013499,2]
[333667271,1722327038149,-1717.32315926,0.00013499,2]
[333667272,1722327038158,-44403.89200011,0.000135,2]
[333667273,1722327038168,-153.0,0.00013562,2]
[333667274,1722327038178,-82710.4181324,0.00013579,2]
[333667275,1722327038188,-4145.93,0.0001358,2]
[333667276,1722327038198,-5940.59001258,0.00013589,5]
[333667277,1722327038207,-124065.627199,0.00013589,2]
[333667279,1722327038216,-15051.0,0.00013589,2]
[333667281,1722327038226,-15051.0,0.00013589,2]
[333667283,1722327038236,-15051.0,0.00013589,2]
[333667285,1722327038246,-15051.0,0.00013589,2]
[333667286,1722327038256,-15051.0,0.00013589,2]
[333667287,1722327038266,-15051.0,0.00013589,2]
[333667288,1722327038275,-14615.40659915,0.00013589,2]
[333667289,1722327038287,-435.59340085,0.00013589,2]
[333667290,1722327038297,-15051.0,0.00013589,2]
[333667291,1722327038306,-41355.2090662,0.0001359,2]
[333667292,1722327038316,-41355.2090662,0.0001359,2]
[333667293,1722327038325,-214.351963,0.0001359,2]
[333667294,1722327038335,-151.0,0.0001359,2]
[333667295,1722327038345,-214.351963,0.0001359,2]
[333667296,1722327038355,-151.0,0.0001359,2]
[333667297,1722327038364,-151.0,0.0001359,2]
[333667298,1722327038374,-151.0,0.0001359,2]
[333667299,1722327038384,-151.0,0.0001359,2]
[333667300,1722327038394,-18954.63523346,0.00013598,5]
[333667301,1722327038403,-15051.0,0.00013598,2]
[333667302,1722327038412,-15051.0,0.00013598,2]
[333667303,1722327038421,-15051.0,0.00013598,2]
[333667304,1722327038431,-151.0,0.00013599,2]
[333667305,1722327038440,-151.0,0.00013599,2]
[333667306,1722327038450,-152.237788,0.00013599,2]
[333667307,1722327038615,-151.0,0.00013599,2]
[333667308,1722327038628,-228.11785,0.00013599,2]
[333667309,1722327038637,-228.11785,0.00013599,2]
[333667310,1722327038647,-151.0,0.00013599,2]
[333667311,1722327038655,-151.0,0.00013599,2]
[333667312,1722327038665,-151.0,0.00013599,2]
[333667313,1722327038674,-151.0,0.00013599,2]
[333667314,1722327038683,-151.0,0.00013599,2]
[333667315,1722327038692,-151.99451,0.00013599,2]
[333667316,1722327038703,-151.0,0.00013599,2]
[333667317,1722327038713,-151.0,0.00013599,2]
[333667318,1722327038724,-151.0,0.00013599,2]
[333667319,1722327038733,-151.0,0.00013599,2]
[333667320,1722327038742,-15051.0,0.00013599,2]
[333667321,1722327038751,-10748.11920195,0.00013599,2]
[333667331,1722327040296,-151.0,0.0001359,2]
[333667332,1722327040307,-4302.88079805,0.00013599,2]
[333667333,1722327040316,-1253.13649278,0.00013599,2]
[333667334,1722327040329,-13797.86350722,0.00013599,2]
[333667335,1722327040339,-15051.0,0.00013599,2]
[333667336,1722327040349,-15051.0,0.00013599,2]
[333667337,1722327040360,-15051.0,0.00013599,2]
[333667338,1722327040369,-15051.0,0.00013599,2]
[333667339,1722327040380,-7557.22331077,0.00013599,2]
[333667348,1722327042918,200.0,0.0001,2]
[333667396,1722327046087,-400.0,0.0001137,2]
[333667398,1722327046096,-600.0,0.00013147,2]
[333667400,1722327046106,-151.0,0.0001359,2]
[333667402,1722327046115,-7493.77668923,0.00013599,2]
[333667404,1722327046125,-15051.0,0.00013599,2]
[333667406,1722327046134,-6680.45875464,0.00013599,2]
[333667419,1722327108110,200.0,0.0001,2]
[333667424,1722327172454,200.0,0.0001,2]
[333667428,1722327249168,200.0,0.0001,2]
[333667429,1722327312490,200.0,0.0001,2]
[333667430,1722327383735,200.0,0.0001,2]
[333667431,1722327443658,200.0,0.0001,2]
[333667432,1722327513234,200.0,0.0001,2]
[333667433,1722327582534,200.0,0.0001,2]
[333667436,1722327650176,200.0,0.0001,2]
[333667437,1722327663582,2989.0981783,0.00027,120]
[333667439,1722327716926,200.0,0.0001,2]
[333667441,1722327782645,200.0,0.0001,2]
[333667442,1722327789795,243.67816151,9.9e-05,2]
[333667443,1722327813228,273.37336231,9.9e-05,2]
[333667444,1722327821834,273.37336231,9.9e-05,2]
[333667445,1722327830092,273.37336231,9.9e-05,2]
[333667446,1722327839231,273.37336231,9.9e-05,2]
[333667447,1722327841357,155.19349633,9.999e-05,2]
[333667448,1722327845502,155.07642353,9.999e-05,2]
[333667449,1722327847709,273.37336231,9.9e-05,2]
[333667450,1722327853113,200.0,0.0001,2]
[333667451,1722327856257,209.88578283,9.9e-05,2]
[333667452,1722327858383,155.2513844,9.999e-05,2]
[333667453,1722327862722,244.74168763,9.999e-05,2]
[333667454,1722327863069,233.0916429,9.9e-05,2]
[333667455,1722327868543,185.72728579,9.999e-05,2]
[333667456,1722327869160,461.06282495,9.999e-05,2]
[333667457,1722327878462,218.23037089,9.9e-05,2]
[333667458,1722327880944,157.15349152,9.999e-05,2]
[333667459,1722327881232,434.6287768,9.999e-05,2]
[333667460,1722327882316,182.9976024,9.999e-05,2]
[333667461,1722327885108,161.36800363,9.9e-05,2]
[333667462,1722327885147,282.25280295,9.9e-05,2]
[333667463,1722327889223,2107.28053433,9.9e-05,2]
[333667464,1722327889259,200.0,9.999e-05,2]
[333667465,1722327894145,12428.57945252,9.9e-05,2]
[333667466,1722327912561,200.0,0.0001,2]
[333667470,1722327947150,154.68290005,9.999e-05,2]
[333667471,1722327970077,273.37336231,9.9e-05,2]
[333667472,1722327978550,273.37336231,9.9e-05,2]
[333667473,1722327983070,200.0,0.0001,2]
[333667474,1722327987449,222.91811574,9.9e-05,2]
[333667475,1722327996730,224.93551317,9.999e-05,2]
[333667477,1722328022742,196.35129401,9.999e-05,2]
[333667478,1722328039616,154.9078176,9.999e-05,2]
[333667479,1722328045141,13996.08887813,9.999e-05,2]
[333667480,1722328048166,273.68853421,9.999e-05,2]
[333667481,1722328048647,398.36350084,9.999e-05,2]
[333667482,1722328053267,200.0,0.0001,2]
[333667483,1722328054168,794.02048447,9.999e-05,2]
[333667485,1722328060844,1626.2994868,9.999e-05,2]
[333667486,1722328069177,3782.59755445,9.999e-05,2]
[333667487,1722328070248,4709.09482938,9.999e-05,2]
[333667491,1722328126684,200.0,0.0001,2]
[333667492,1722328153849,415.23629123,9.999e-05,2]
[333667493,1722328159415,858.39620385,9.999e-05,2]
[333667494,1722328161480,243.51848626,9.999e-05,2]
[333667495,1722328176497,218.00151768,0.0001,2]
[333667496,1722328188022,183.0296991,9.999e-05,2]
[333667504,1722328192579,200.0,0.0001,2]
[333667505,1722328217353,183.0296991,9.999e-05,2]
[333667550,1722328232164,-400.0,0.0001137,2]
[333667552,1722328232174,-166.666666,0.00011646,2]
[333667553,1722328232183,-182.172956,0.0001207,2]
[333667555,1722328232193,-459.45606609,0.00012119,2]
[333667556,1722328232202,-258.8187254,0.0001212,2]
[333667557,1722328232213,-4289.97530594,0.00012192,2]
[333667558,1722328232226,-1398.96224046,0.00012192,2]
[333667559,1722328232235,-182.172956,0.00012196,2]
[333667560,1722328232245,-182.172956,0.00012321,2]
[333667561,1722328232254,-166.666666,0.0001244,2]
[333667562,1722328232264,-182.172956,0.00012447,2]
[333667563,1722328232274,-182.172956,0.00012573,2]
[333667564,1722328232294,-182.172956,0.00012699,2]
[333667565,1722328232304,-153.0,0.00012778,2]
[333667566,1722328232316,-456.61,0.00012972,2]
[333667567,1722328232326,-200.0,0.00012986,2]
[333667568,1722328232337,-600.0,0.00013147,2]
[333667569,1722328232347,-166.666666,0.00013234,2]
[333667570,1722328232359,-300.0,0.00013259,2]
[333667571,1722328232372,-367.69126021,0.0001326,2]
[333667572,1722328232382,-1981.09407583,0.00013273,2]
[333667596,1722328238187,-2103.77420986,0.00013273,2]
[333667597,1722328238197,-894.26581204,0.00013399,2]
[333667603,1722328240520,-631.18495214,0.00013399,2]
[333667604,1722328240530,-306.0,0.00013425,2]
[333667605,1722328240540,-306.0,0.00013425,2]
[333667606,1722328240550,-3486.67115206,0.00013489,2]
[333667607,1722328240561,-1730.17248413,0.00013497,2]
[333667608,1722328240571,-1730.17248411,0.00013498,2]
[333667609,1722328240582,-1730.17248411,0.00013499,2]
[333667610,1722328240591,-25028.10973013,0.00013499,2]
[333667611,1722328240602,-1730.17248411,0.00013499,2]
[333667612,1722328240612,-1730.17248411,0.000135,2]
[333667613,1722328240621,-1545.59084328,0.000135,2]
[333667614,1722328240631,-5001.32,0.00013578,2]
[333667615,1722328240640,-5001.32,0.00013587,2]
[333667617,1722328240650,-5001.32,0.00013588,2]
[333667618,1722328240661,-26600.70771981,0.00013589,2]
[333667686,1722328243470,-944.18110412,0.00013589,2]
[333667729,1722328246302,-5519.99999994,0.00013589,2]
[333667730,1722328246314,-481.42371192,0.00013589,2]
[333667737,1722328256746,200.0,0.0001,2]
[333667738,1722328322739,200.0,0.0001,2]
[333667740,1722328392428,200.0,0.0001,2]
[333667742,1722328434806,317.51,0.0001,2]
[333667743,1722328452732,200.0,0.0001,2]
[333667745,1722328512838,200.0,0.0001,2]
[333667746,1722328582551,200.0,0.0001,2]
[333667747,1722328652728,200.0,0.0001,2]
[333667748,1722328687465,813.19736176,9.999e-05,2]
[333667749,1722328722666,200.0,0.0001,2]
[333667750,1722328792434,200.0,0.0001,2]
[333667751,1722328793478,823.48179426,9.999e-05,2]
[333667752,1722328823469,823.48179426,9.999e-05,2]
[333667753,1722328863184,200.0,0.0001,2]
[333667754,1722328933176,200.0,0.0001,2]
[333667755,1722328993090,200.0,0.0001,2]
[333667756,1722328993933,942.20713374,9.999e-05,2]
[333667757,1722329062699,328.08559949,0.0001,2]
[333667759,1722329097062,942.20713374,9.999e-05,2]
[333667760,1722329176939,448.04956281,9.999e-05,2]
[333667761,1722329297886,183.0296991,9.999e-05,2]
[333667769,1722329405072,183.0296991,9.999e-05,2]
[333667815,1722329434893,183.0296991,9.999e-05,2]
[333667837,1722329438473,-459.45606609,0.00012119,2]
[333667839,1722329438483,-200.0,0.00012986,2]
[333667841,1722329438493,-1000.0,0.00013,13]
[333667843,1722329438503,-367.69126021,0.00013157,2]
[333667845,1722329438512,-620.83319185,0.00013177,2]
[333667847,1722329438522,-345.07008971,0.00013184,2]
[333667849,1722329438534,-335.6786523,0.00013184,2]
[333667891,1722329438909,-2291.09276234,0.00013184,2]
[333667893,1722329438920,-309.4544038,0.000133,2]
[333667895,1722329438930,-300.0,0.00013496,2]
[333667897,1722329438939,-1334.76941864,0.00013497,2]
[333667899,1722329438949,-1545.59084328,0.000135,2]
[333667901,1722329438963,-163.574824,0.00013506,2]
[333667903,1722329438973,-654.299298,0.00013506,2]
[333667905,1722329438983,-741.467188,0.00013506,2]
[333667907,1722329438992,-157.31912,0.00013506,2]
[333667909,1722329439004,-1391.8591848,0.0001358,2]
[333667911,1722329439014,-5022.15,0.00013588,2]
[333667913,1722329439025,-7967.31785098,0.00013589,2]
[333667915,1722329439035,-5022.15,0.00013589,2]
[333667917,1722329439046,-5022.15,0.00013589,2]
[333667919,1722329439056,-5022.15,0.00013589,2]
[333667921,1722329439067,-5022.15,0.00013589,2]
[333667923,1722329439077,-5022.15,0.00013589,2]
[333667925,1722329439088,-2970.29500629,0.0001359,5]
[333667927,1722329439098,-112332.48884526,0.0001359,2]
[333668030,1722329440644,-46610.60353131,0.0001359,2]
[333668052,1722329564036,555.63,0.0001,2]
[333668092,1722329978551,454.6,0.00025,60]
[333668100,1722330139640,1352.0,0.00025,60]
[333668237,1722330638704,-200.0,0.00012986,2]
[333668238,1722330638715,-367.69126021,0.00013327,2]
[333668239,1722330638724,-1443.12874993,0.00013399,2]
[333668240,1722330638735,-600.0,0.00013413,2]
[333668241,1722330638915,-4128.27282609,0.00013418,2]
[333668242,1722330638928,-300.0,0.00013477,2]
[333668243,1722330638938,-2041.75135991,0.00013478,2]
[333668244,1722330638951,-1706.46402414,0.00013478,2]